Cogmind - Beta 9.6 @@@ ROGUE MODE // 2020.06.04 @ 11:29:26 Player: RNGesus Result: Self-destructed Performance ------------- Evolutions (3) 1500 Regions Visited (9) 1800 Robots Destroyed (94) 470 Value Destroyed (2255) 2255 Prototype IDs (239) 4780 Alien Tech Used (0) 0 Bonus (3952) 3952 TOTAL SCORE: 14757 Bonus ------- High Alert Combat Kills 224 Follower Combat Kills 134 Aligned with FarCom 300 Met Data Miner 300 Used Data Conduit 3000 Friendly Fire -6 Cogmind --------- Core Integrity 590/700 Matter 256/300 Energy 73/100 System Corruption 0% Temperature Cool (22) Movement Flying (105) Ox1 Location -7/Data Miner Parts ------- > --- POWER (1) -------- (None) > --- PROPULSION (3) --- Improved Flight Unit > --- UTILITY (7) ------ Medium Storage Unit Advanced Signal Interpreter System Mapper Ghost Barrier > --- WEAPON (2) ------- Spear > --- INVENTORY (8) ---- Light Nuclear Core Long-range Sensor Array Hacking Suite System Shield Advanced EMP Blaster Mini Grenade Launcher Heavy Missile Launcher Plasma Cutter Peak State ------------ > --- POWER ------------ Micro Nuclear Core > --- PROPULSION ------- Improved Flight Unit Improved Flight Unit Improved Flight Unit > --- UTILITY ---------- Medium Storage Unit Long-range Sensor Array Advanced Signal Interpreter Hacking Suite System Mapper Deep Network Scanner Ghost Barrier > --- WEAPON ----------- Spear > --- INVENTORY -------- Light Nuclear Core Long-range Sensor Array Hacking Suite System Shield Advanced EMP Blaster Mini Grenade Launcher Heavy Missile Launcher Plasma Cutter [Rating: 58] Favorites ----------- Power Fission Core Engine Light Deuterium Engine Power Core Fission Core Propulsion Armored Treads Treads Armored Treads Leg Aluminum Leg Wheel Compact Wheel Flight Unit Improved Flight Unit Utility Large Storage Unit Device Improved Heat Sink Storage Large Storage Unit Processor Advanced Targeting Computer Hackware Hacking Suite Protection Light Armor Plating Weapon Heavy EM Shotgun Energy Gun Heavy EM Shotgun Ballistic Gun Light Assault Rifle Ballistic Cannon Assault Cannon Launcher Grenade Launcher Piercing Weapon Spear Build | -11 -10 -10 -10 -9 -8 -7 -7 -7 -7 ------- Run | Scr Mat Min Exi Min Mat Fac Low Low Dat Slots Evolved 6 | . . . . . 4 2 . . . Power . | . . . . . . . . . . Propulsion 1 | . . . . . 1 . . . . Utility 5 | . . . . . 3 2 . . . Weapon . | . . . . . . . . . . Parts Attached 80 | 8 10 8 3 5 29 14 . . 3 Power 7 | 1 . 1 . 1 3 1 . . . Engine 4 | 1 . . . 1 2 . . . . Core 3 | . . 1 . . 1 1 . . . Reactor . | . . . . . . . . . . Propulsion 24 | 3 2 2 1 2 11 3 . . . Treads 8 | . . . . . 8 . . . . Leg 10 | 2 2 2 . 2 2 . . . . Wheel 2 | 1 . . 1 . . . . . . Hover . | . . . . . . . . . . Flight 4 | . . . . . 1 3 . . . Utility 23 | 1 2 1 1 . 7 8 . . 3 Device 7 | . . . . . 5 2 . . . Storage 4 | 1 1 . 1 . . 1 . . . Processor 3 | . . 1 . . 1 1 . . . Hackware 7 | . . . . . . 4 . . 3 Protection 2 | . 1 . . . 1 . . . . Artifact . | . . . . . . . . . . Weapon 26 | 3 6 4 1 2 8 2 . . . Energy Gun 18 | 3 5 3 1 . 5 1 . . . Energy Cannon . | . . . . . . . . . . Ballistic Gun 2 | . . . . 2 . . . . . Ballistic Cannon 2 | . . . . . 2 . . . . Launcher 3 | . 1 1 . . 1 . . . . Special Weapon . | . . . . . . . . . . Impact Weapon . | . . . . . . . . . . Slashing Weapon . | . . . . . . . . . . Piercing Weapon 1 | . . . . . . 1 . . . Special Melee Weapon . | . . . . . . . . . . Unidentified Prototypes 7 | . . . . . 3 1 . . 3 Parts Lost 25 | . 2 6 2 2 7 . . . 6 Power 3 | . . 1 . 1 . . . . 1 Propulsion 5 | . . 1 . 1 1 . . . 2 Utility 6 | . . 1 . . 2 . . . 3 Weapon 11 | . 2 3 2 . 4 . . . . Highest Loss Streak 6 | . 1 4 2 2 3 . . . 6 Average Slot Usage (%) 90 | . 89 91 85 78 95 87 92 92 92 Engine 3 | . 14 3 . 2 4 . . . . Core 7 | . . 9 14 11 4 7 7 7 7 Treads 9 | . . . . . 22 . . . . Leg 14 | . 28 26 27 27 3 . . . . Flight 2 | . . . . . . 23 23 23 23 Device 7 | . . . . . 15 10 7 7 7 Storage 18 | . 14 14 27 28 18 7 7 7 7 Processor 5 | . . 9 . . 8 7 7 7 7 Hackware 3 | . . . . . . 22 30 30 30 Protection 1 | . 6 3 . . . . . . . Energy Gun 9 | . 25 17 14 . 7 . . . . Ballistic Gun 1 | . . . . 8 1 . . . . Ballistic Cannon 3 | . . . . . 7 . . . . Naked Turns . | . . . . . . . . . . Heaviest Build 49 | 13 27 30 44 44 49 18 18 18 18 Greatest Support 60 | 20 20 30 30 30 60 18 18 18 18 Greatest Overweight (x) 2 | 2 1 2 2 1 2 . . . . Average Overweight (x) . | . . . . 1 . . . . . Largest Inventory Capacity 20 | 6 10 10 16 16 16 20 8 8 8 Average Capacity 13 | 5 7 10 15 16 16 8 8 8 8 Most Carried 16 | 4 10 10 14 16 16 16 8 8 8 Average Carried 12 | 2 6 9 11 14 15 7 8 8 8 Final Capacity 16 | 6 10 10 16 16 16 8 8 8 8 Final Carried 16 | 4 10 10 13 16 16 8 8 8 8 Class Distribution -------------------- 74% | Mutant 12% | Scavenger-Mutant 8% | Hacker-Sprinter Dominant Class ---------------- Mutant | -10/Materials Mutant | -10/Mines Mutant | -10/Exiles Mutant | -9/Mines Mutant | -8/Materials Hacker-Sprinter | -7/Factory Hacker-Sprinter | -7/Lower Caves Hacker-Sprinter | -7/Lower Caves Hacker-Sprinter | -7/Data Miner Resources | -11 -10 -10 -10 -9 -8 -7 -7 -7 -7 ----------- Run | Scr Mat Min Exi Min Mat Fac Low Low Dat Matter Collected 1601 | 280 83 132 . 79 916 83 8 . 20 Remotely . | . . . . . . . . . . Salvage Created 3083 | 65 434 230 . 62 2057 215 . . 20 Parts 190 | . 35 11 . 4 113 24 . . 3 Haulers Intercepted 7 | . 1 . . . 6 . . . . Recyclers Shooed 1 | . 1 . . . . . . . . Parts Field Recycled . | . . . . . . . . . . Retrieved Matter . | . . . . . . . . . . Parts Self-Destructed . | . . . . . . . . . . Prevented . | . . . . . . . . . . Kills | -11 -10 -10 -10 -9 -8 -7 -7 -7 -7 ------- Run | Scr Mat Min Exi Min Mat Fac Low Low Dat Combat Hostiles Destroyed 60 | . 10 11 . . 36 3 . . . Melee 3 | . . . . . . 3 . . . Guns 30 | . 7 8 . . 15 . . . . Cannons 21 | . . . . . 21 . . . . AOE 6 | . 3 3 . . . . . . . Classes Destroyed 12 | 1 7 2 . . 2 . . . . Worker 5 | . . 1 . . 4 . . . . Builder 2 | . 2 . . . . . . . . Tunneler 3 | . 1 . . . 1 1 . . . Hauler 7 | . 1 . . . 6 . . . . Recycler 5 | 1 1 . . 1 2 . . . . Operator 6 | . 1 . . . 2 3 . . . Watcher 5 | . 1 . . . 2 2 . . . Swarmer 17 | . 6 3 . . 5 3 . . . Grunt 27 | . 4 2 . . 21 . . . . Sentry 8 | . . . . . 8 . . . . Hunter 2 | . . . . . 2 . . . . Assembled 6 | . . 6 . . . . . . . Best Kill Streak 6 | 1 5 3 . 1 6 4 . . 1 Combat Bots Only 4 | . 3 3 . . 4 3 . . . Max Kills in Single Turn 2 | 1 2 2 . 1 2 1 . . 1 Gunslinging . | . . . . . . . . . . Exploded 2 | . 2 2 . . . . . . . Melee 1 | . . . . . . 1 . . . Uniques/NPCs Destroyed 1 | . . . . . . . . . 1 Data Miner (-7/Data Miner) Combat | -11 -10 -10 -10 -9 -8 -7 -7 -7 -7 -------- Run | Scr Mat Min Exi Min Mat Fac Low Low Dat Damage Taken 4108 | . 504 672 156 102 2133 145 30 . 366 Core 547 | . 133 18 31 . 255 62 . . 48 Absorbed by Shields . | . . . . . . . . . . Core Remaining (%) 60 | 100 . . . 27 53 . . . . Volleys Fired 232 | 5 39 42 1 7 138 . . . . Largest 2 | 2 2 2 2 2 2 . . . . Hottest 100 | 100 100 80 80 40 94 . . . . Shots Fired 380 | 10 69 53 2 14 232 . . . . Gun 255 | 10 66 51 2 14 112 . . . . Cannon 120 | . . . . . 120 . . . . Launcher 5 | . 3 2 . . . . . . . Special . | . . . . . . . . . . Kinetic 158 | . . . . 14 144 . . . . Thermal 122 | 10 63 40 2 . 7 . . . . Explosive 5 | . 3 2 . . . . . . . Electromagnetic 95 | . 3 11 . . 81 . . . . Robot Hit Streak 18 | 2 8 13 2 7 18 . . . . Robot Miss Streak 6 | 2 3 5 . 1 6 . . . . Penetration Max . | . . . . . . . . . . Secondary Targets 1 | . 1 . . . . . . . . Max Gunslinging Chain 1 | . 1 . . . . . . . . Shots Hit Robots 298 | 6 43 34 2 12 190 10 . . 1 Core Hits 186 | 2 24 26 . 4 120 9 . . 1 Critical Hits 6 | . . . . 1 5 . . . . Critical Kills 3 | . . . . . 3 . . . . Critical Parts Destroyed 3 | . . . . 1 2 . . . . Melee Attacks 53 | . . . . . . 41 7 4 1 Impact . | . . . . . . . . . . Slashing . | . . . . . . . . . . Piercing 53 | . . . . . . 41 7 4 1 Sneak Attacks 4 | . . . . . . 3 . . 1 Combat Hostiles . | . . . . . . . . . . Follow-up Attacks . | . . . . . . . . . . Damage Inflicted 6144 | 85 807 593 2 70 4008 493 . . 86 Guns 2959 | 85 503 420 2 70 1879 . . . . Cannons 1737 | . . . . . 1737 . . . . Explosions 851 | . 304 173 . . 374 . . . . Melee 579 | . . . . . . 493 . . 86 Ramming 18 | . . . . . 18 . . . . Kinetic 1955 | . . . . 70 1885 . . . . Thermal 1198 | 85 505 308 2 . 298 . . . . Explosive 602 | . 274 173 . . 155 . . . . Electromagnetic 1792 | . 28 112 . . 1652 . . . . Impact . | . . . . . . . . . . Slashing . | . . . . . . . . . . Piercing 579 | . . . . . . 493 . . 86 Highest Corruption . | . . . . . . . . . . Average Corruption . | . . . . . . . . . . Corruption Purged . | . . . . . . . . . . Overload Shots . | . . . . . . . . . . Overflow Damage 93 | . 19 . . . 74 . . . . Projectiles 39 | . . . . . 39 . . . . Explosions 54 | . 19 . . . 35 . . . . Melee . | . . . . . . . . . . Knockbacks 31 | . . . . . 31 . . . . Impact . | . . . . . . . . . . Kinetic 31 | . . . . . 31 . . . . Secondary . | . . . . . . . . . . Self-Inflicted Damage 31 | . . . . . 31 . . . . Shots 1 | . . . . . 1 . . . . Rammed 1 | . . . . . 1 . . . . Targets Rammed 1 | . . . . . 1 . . . . Kicked . | . . . . . . . . . . Crushed . | . . . . . . . . . . Highest Temperature 338 | 195 338 235 27 12 21 3 . . 2 Average Temperature 85 | 100 138 58 12 6 5 3 . . 2 Received Heat Transfer 1407 | . 183 87 60 57 936 18 18 . 48 Effects 3 | . 1 2 . . . . . . . Energy Bleed 1 | . 1 . . . . . . . . Interference 2 | . . 2 . . . . . . . Siege Activations . | . . . . . . . . . . Robots Corrupted . | . . . . . . . . . . Combat Hostiles . | . . . . . . . . . . Parts Fried 5 | . . 1 . . 4 . . . . Impact Corruptions . | . . . . . . . . . . Robots Melted . | . . . . . . . . . . Combat Hostiles . | . . . . . . . . . . Parts Melted 7 | 2 5 . . . . . . . . Heat Transferred 2794 | 259 1288 700 12 . 535 . . . . Parts Sabotaged . | . . . . . . . . . . Parts Stolen . | . . . . . . . . . . Parts Stripped . | . . . . . . . . . . Power Chain Reactions 6 | . 1 . . . 5 . . . . Missiles Intercepted . | . . . . . . . . . . Alert | -11 -10 -10 -10 -9 -8 -7 -7 -7 -7 ------- Run | Scr Mat Min Exi Min Mat Fac Low Low Dat Peak Influence 782 | 5 279 140 . 131 782 689 . . . Average Influence 284 | 1 133 76 . 34 422 516 . . . Maximum Alert Level 3 | . 1 . . . 3 2 . . . Low Security (%) 46 | 100 64 100 . 100 18 . . . . Level 1 20 | . 35 . . . 26 29 . . . Level 2 24 | . . . . . 36 70 . . . Level 3 8 | . . . . . 17 . . . . Level 4 . | . . . . . . . . . . Level 5 . | . . . . . . . . . . High Security . | . . . . . . . . . . Max Security . | . . . . . . . . . . Squads Dispatched 18 | . 2 . . . 11 5 . . . Investigation 8 | . 1 . . . 5 2 . . . Extermination 1 | . . . . . . 1 . . . Reinforcement 5 | . 1 . . . 2 2 . . . Assault . | . . . . . . . . . . Garrison 4 | . . . . . 4 . . . . Intercept . | . . . . . . . . . . Construction Impeded 1 | . . . . . 1 . . . . Haulers Reinforced . | . . . . . . . . . . Stealth | -11 -10 -10 -10 -9 -8 -7 -7 -7 -7 --------- Run | Scr Mat Min Exi Min Mat Fac Low Low Dat Distress Signals 8 | . 1 . . . 6 1 . . . Communications Jammed . | . . . . . . . . . . Distress Signals . | . . . . . . . . . . Times Spotted 136 | . 17 13 8 6 64 21 3 . 4 Peak Tracking Total 9 | . 5 3 9 4 6 6 3 . 4 Tactical Retreats 13 | . . . . . 5 7 1 . . Traps | -11 -10 -10 -10 -9 -8 -7 -7 -7 -7 ------- Run | Scr Mat Min Exi Min Mat Fac Low Low Dat Traps Triggered 2 | . 1 . . . 1 . . . . Indirectly . | . . . . . . . . . . Trap Hack Attempts . | . . . . . . . . . . Triggered . | . . . . . . . . . . Disarmed . | . . . . . . . . . . Reprogrammed . | . . . . . . . . . . Reused . | . . . . . . . . . . Traps Extracted . | . . . . . . . . . . Installed . | . . . . . . . . . . Triggered . | . . . . . . . . . . Exploded 1 | . . . . . 1 . . . . Machines | -11 -10 -10 -10 -9 -8 -7 -7 -7 -7 ---------- Run | Scr Mat Min Exi Min Mat Fac Low Low Dat Machines Disabled 4 | . . . . . 2 2 . . . Max in Single Turn 1 | . . . . . 1 1 . . . Machines Sabotaged . | . . . . . . . . . . Garrisons Compromised . | . . . . . . . . . . Overloaded Fab Kills . | . . . . . . . . . . Fab Network Shutdowns . | . . . . . . . . . . Hacking | -11 -10 -10 -10 -9 -8 -7 -7 -7 -7 --------- Run | Scr Mat Min Exi Min Mat Fac Low Low Dat Machines Accessed 21 | . 1 . 1 . 9 9 1 . . Terminals 18 | . 1 . . . 8 8 1 . . Fabricators 1 | . . . . . . 1 . . . Repair Stations . | . . . . . . . . . . Recycling Units . | . . . . . . . . . . Scanalyzers 1 | . . . . . 1 . . . . Garrison Access . | . . . . . . . . . . Total Hacks 64 | . 3 . 1 . 27 30 3 . . Successful 25 | . 2 . 1 . 7 13 2 . . Failed 37 | . 1 . . . 19 16 1 . . Catastrophic 5 | . . . . . 4 1 . . . Database Lockouts 2 | . . . . . 1 1 . . . Manual 47 | . 3 . 1 . 17 24 2 . . Terminals 58 | . 3 . . . 25 27 3 . . Fabricators 3 | . . . . . . 3 . . . Repair Stations . | . . . . . . . . . . Recycling Units . | . . . . . . . . . . Scanalyzers 2 | . . . . . 2 . . . . Garrison Access . | . . . . . . . . . . Terminal Hacks 15 | . 1 . 1 . 4 7 2 . . Record 1 | . . . . . . . 1 . . Part Schematic 2 | . . . . . 1 1 . . . Branch Access Points 4 | . 1 . . . 1 1 1 . . Emergency Access Points 1 | . . . . . . 1 . . . Terminal Index 1 | . . . . . . 1 . . . Fabricator Index 1 | . . . . . . 1 . . . Transport Status 1 | . . . . . 1 . . . . Recall Investigation 1 | . . . . . . 1 . . . Recall Extermination 1 | . . . . . . 1 . . . Hauler Manifests 1 | . . . . . 1 . . . . EX-Prototype ID Bank 1 | . . . 1 . . . . . . Fabricator Hacks 3 | . . . . . . 3 . . . Network Status 1 | . . . . . . 1 . . . Load Schematic 1 | . . . . . . 1 . . . Build 1 | . . . . . . 1 . . . Repair Station Hacks . | . . . . . . . . . . Recycling Unit Hacks . | . . . . . . . . . . Scanalyzer 2 | . . . . . 2 . . . . Insert Component 1 | . . . . . 1 . . . . Analyze 1 | . . . . . 1 . . . . Garrison Access Hacks . | . . . . . . . . . . Unauthorized Hacks 5 | . 1 . . . 1 3 . . . Terminals 5 | . 1 . . . 1 3 . . . Assimilate 1 | . . . . . . 1 . . . Botnet 1 | . . . . . . 1 . . . Operators 3 | . 1 . . . 1 1 . . . Fabricators . | . . . . . . . . . . Repair Stations . | . . . . . . . . . . Recycling Units . | . . . . . . . . . . Scanalyzers . | . . . . . . . . . . Garrison Access . | . . . . . . . . . . Data Cores Recovered 1 | . . . . . 1 . . . . Used . | . . . . . . . . . . Hacking Detections 18 | . . . . . 8 9 1 . . Full Trace Events 5 | . . . . . 4 1 . . . Feedback Events . | . . . . . . . . . . Feedback Blocked . | . . . . . . . . . . Robot Schematics Acquired . | . . . . . . . . . . Robots Built . | . . . . . . . . . . Matter . | . . . . . . . . . . Time . | . . . . . . . . . . Total Robot Build Rating . | . . . . . . . . . . Part Schematics Acquired 3 | . . . . . 2 1 . . . Parts Built 1 | . . . . . . 1 . . . Matter 168 | . . . . . . 168 . . . Time 42 | . . . . . . 42 . . . Total Part Build Rating 4 | . . . . . . 4 . . . Parts Repaired . | . . . . . . . . . . Time . | . . . . . . . . . . Parts Recycled . | . . . . . . . . . . Recycled Matter . | . . . . . . . . . . Retrieved Matter . | . . . . . . . . . . Retrieved Components . | . . . . . . . . . . Parts Scanalyzed 1 | . . . . . 1 . . . . Part Schematics Acquired 1 | . . . . . 1 . . . . Parts Damaged . | . . . . . . . . . . Bothacking | -11 -10 -10 -10 -9 -8 -7 -7 -7 -7 ------------ Run | Scr Mat Min Exi Min Mat Fac Low Low Dat Used RIF Installer . | . . . . . . . . . . Robots Hacked . | . . . . . . . . . . Non-combat . | . . . . . . . . . . Combat . | . . . . . . . . . . Robot Hacks Applied . | . . . . . . . . . . Relay Couplers Released . | . . . . . . . . . . Robots Rewired . | . . . . . . . . . . Allies Hacked . | . . . . . . . . . . Hacks Repelled . | . . . . . . . . . . Allies | -11 -10 -10 -10 -9 -8 -7 -7 -7 -7 -------- Run | Scr Mat Min Exi Min Mat Fac Low Low Dat Total Allies 6 | . . . . 6 . . . . . Largest Group 6 | . . . . 6 2 . . . . Highest-Rated Group 113 | . . . . 113 42 . . . . Highest-Rated Ally 31 | . . . . 31 31 . . . . Total Orders . | . . . . . . . . . . Ally Attacks 42 | . . . . 29 13 . . . . Total Damage 668 | . . . . 419 249 . . . . Kills 10 | . . . . 7 3 . . . . Allies Corrupted . | . . . . . . . . . . Allies Melted . | . . . . . . . . . . Intel | -11 -10 -10 -10 -9 -8 -7 -7 -7 -7 ------- Run | Scr Mat Min Exi Min Mat Fac Low Low Dat Robot Analysis Total 115 | . . . . . . . . . 115 Derelict Logs Recovered 2 | . . 1 . 1 . . . . . Drone Launches . | . . . . . . . . . . Drone Recoveries . | . . . . . . . . . . Exploration | -11 -10 -10 -10 -9 -8 -7 -7 -7 -7 ------------- Run | Scr Mat Min Exi Min Mat Fac Low Low Dat Turns Passed 5554 | 86 587 604 676 681 2217 448 112 115 28 Spaces Moved 4239 | 48 329 369 453 426 1034 834 318 362 66 Core 8 | 8 . . . . . . . . . Treads 894 | . . . . . 894 . . . . Legs 1736 | 37 329 369 435 426 140 . . . . Wheels 21 | 3 . . 18 . . . . . . Hover . | . . . . . . . . . . Flight 1580 | . . . . . . 834 318 362 66 Fastest Speed 29 | 50 120 120 120 150 120 29 29 29 29 Average Speed 104 | 116 132 125 147 150 167 29 29 29 29 Slowest Speed 210 | 150 150 180 150 150 210 29 29 29 32 Overloaded Moves . | . . . . . . . . . . Propulsion Burnouts . | . . . . . . . . . . Robots Hopped 8 | . . . . . . 8 . . . Cave-ins Triggered . | . . . . . . . . . . Exploration Rate (%) 59 | 4 66 69 81 86 79 30 55 55 68 Regions Visited 9 Branch Regions 6 Pre-discovered Areas 27 | . . . . . . . . . 27 Known Exits Taken 5 | . 1 . . . 1 1 1 1 . Unknown Exits Taken 4 | 1 . 1 1 1 . . . . . Scrap Searched 6 | . . 1 . 2 . . 2 1 . Spaces Dug 39 | . . 5 . . . 25 7 2 . Terrain Destroyed 109 | . 13 11 . . 51 25 7 2 . Melee 34 | . . . . . . 25 7 2 . Projectile 8 | . . . . . 8 . . . . AOE 67 | . 13 11 . . 43 . . . . Actions | -11 -10 -10 -10 -9 -8 -7 -7 -7 -7 --------- Run | Scr Mat Min Exi Min Mat Fac Low Low Dat Total 4899 | 64 415 453 460 455 1307 981 326 365 73 Wait 182 | . 22 32 . 14 42 70 2 . . Move 4214 | 47 328 368 452 425 1033 817 317 361 66 Hop 8 | . . . . . . 8 . . . Pick Up 54 | 3 9 2 3 4 27 6 . . . Fast Attach 36 | 7 2 3 . 3 14 4 . . 3 Attach 22 | . 1 2 2 1 8 8 . . . Detach 16 | 1 . . 1 . 4 7 . . 3 Swap 22 | 1 7 3 1 1 7 2 . . . Drop 59 | . 7 1 . . 33 18 . . . Fire 232 | 5 39 42 1 7 138 . . . . Melee 53 | . . . . . . 41 7 4 1 Ram . | . . . . . . . . . . Kick 1 | . . . . . 1 . . . . Crush . | . . . . . . . . . . Escape Stasis . | . . . . . . . . . . Rewire . | . . . . . . . . . . Trap . | . . . . . . . . . . Miscellaneous . | . . . . . . . . . . Route ------- -11/Scrapyard -10/Materials (discovered 4 exits: *Mat x2 / *Min x2) -10/Mines (discovered 3 exits: *Mat x2 / *Exi) -10/Exiles -9/Mines -8/Materials (discovered 2 exits: *Fac x2) -7/Factory (discovered 4 exits: *Fac / Sto / *Low x2) -7/Lower Caves -7/Lower Caves -7/Data Miner (discovered 1 exit: [*Pro]) History --------- Turn | Location | Event 22 | -11/Scrapyard | Discovered new exit (range 15) 87 | -11/Scrapyard | Entered Materials 108 | -10/Materials | Identified exit to Mines 320 | -10/Materials | Build established: Mutant 341 | -10/Materials | Discovered new exit (range 6) 401 | -10/Materials | Core integrity fell below 50% 557 | -10/Materials | Discovered new exit (range 6) 674 | -10/Materials | Entered Mines 744 | -10/Mines | Assembled infested the area 749 | -10/Mines | Assisted by a Guerilla fighting off Assembled 865 | -10/Mines | Lost 4 parts (1p1n1u1w) 1039 | -10/Mines | Identified exit to Materials 1146 | -10/Mines | Deemed a non-threat by the Exiles lab entrance 1147 | -10/Mines | Discovered new exit (range 5) 1218 | -10/Mines | Discovered exit to Materials (range 6) 1278 | -10/Mines | Entered Exiles 1308 | -10/Exiles | Met 8R-AWN 1354 | -10/Exiles | Met EX-HEX 1421 | -10/Exiles | Met EX-DEC 1454 | -10/Exiles | Visited The Gauntlet 1655 | -10/Exiles | Met EX-BIN 1673 | -10/Exiles | Aligned with FarCom system 1675 | -10/Exiles | Given EX-Vault access code 1711 | -10/Exiles | Opened EX-Vault 1723 | -10/Exiles | Found AWS/Autocannon 1757 | -10/Exiles | Warned to stay clear of 0b10 Research branches 1925 | -10/Exiles | Attacked by the Exiles 1941 | -10/Exiles | Discovered new exit (range 14) 1954 | -10/Exiles | Left Exiles lab with AWS/Autocannon 1954 | -10/Exiles | Entered Mines 2130 | -9/Mines | Received a Rocket Launcher from a helpful Derelict 2159 | -9/Mines | Discovered new exit (range 10) 2171 | -9/Mines | Received a Mining Laser from a helpful Derelict 2232 | -9/Mines | Learned 2 Materials zone layouts 2384 | -9/Mines | Assisted by bots powering up and referring to "LRC-V3" 2635 | -9/Mines | Entered Materials 2635 | -8/Materials | Accompanied by 2 allies 2635 | -8/Materials | Evolved 4 slots: Propulsion x1, Utility x3 2636 | -8/Materials | Identified exit to Factory 2640 | -8/Materials | Led the pair of lost Derelicts to an unsafe place 2858 | -8/Materials | Build established: Scavenger-Mutant 2910 | -8/Materials | Garrison activated, responded to threat 2951 | -8/Materials | Lost 3 parts (1u2w) 3216 | -8/Materials | Build established: Mutant 3592 | -8/Materials | Garrison activated, responded to threat 3640 | -8/Materials | Discovered exit to Factory (range 15) 4608 | -8/Materials | Central database locked down 4852 | -8/Materials | Entered Factory 4852 | -7/Factory | Evolved 2 slots: Utility x2 4898 | -7/Factory | Identified exit to Storage 4898 | -7/Factory | Identified exit to Lower Caves 5045 | -7/Factory | Discovered new exit (range 3) 5045 | -7/Factory | Identified exit to Factory 5086 | -7/Factory | Central database locked down 5226 | -7/Factory | Fabricated Lrn. Sensor Array? 5300 | -7/Factory | Entered Lower Caves 5310 | -7/Lower Caves | Identified exit to Lower Caves 5386 | -7/Lower Caves | Build established: Hacker-Sprinter 5412 | -7/Lower Caves | Entered another Lower Caves area 5523 | -7/Lower Caves | Encountered a Warlord checkpoint 5524 | -7/Lower Caves | Discovered new exit (range 11) 5527 | -7/Lower Caves | Identified exit to Data Miner 5527 | -7/Lower Caves | Entered Data Miner 5527 | -7/Data Miner | Discovered new exit (range 6) 5533 | -7/Data Miner | Met Data Miner 5538 | -7/Data Miner | Destroyed Data Miner 5541 | -7/Data Miner | Interfaced with the Data Conduit 5542 | -7/Data Miner | Found Prototype Hackware 5542 | -7/Data Miner | Identified Ghost Barrier 5544 | -7/Data Miner | Found Prototype Hackware 5544 | -7/Data Miner | Identified Deep Network Scanner 5548 | -7/Data Miner | Found Prototype Hackware 5548 | -7/Data Miner | Identified System Mapper 5555 | -7/Data Miner | Self-destructed Last Messages --------------- Downloaded 708 prototype IDs. Downloaded central machine database. Downloaded 27 destinations. Downloaded encryption format records. Connection remotely terminated. 05542_ Discarded Hacking Suite. 05542_ Acquired Prototype Hackware. 05542_ Identified Ghost Barrier. 05544_ Discarded Hacking Suite. 05544_ Acquired Prototype Hackware. 05544_ Identified Deep Network Scanner. 05547_ Discarded Hacking Suite. 05548_ Acquired Prototype Hackware. 05548_ Identified System Mapper. 05553_ Imp. Flight Unit destroyed. 05553_ Hacking Suite destroyed. 05553_ Lrn. Sensor Array destroyed. 05553_ Deep Network Scanner destroyed. 05553_ Mic. Nuclear Core destroyed. 05555_ Imp. Flight Unit destroyed. Map ----- +----------------------------------------------------+ | | | | | | | | | | | | | | | | | | | | | | | | | | | | | | | | | ???????????????????????????????????????????? | | ???????????????????????????????????????????? | | ???????????????????????????????????????????? | | ???????????????????????????????????????????? | | ???????????????????????????????####????????? | | ###############????#########?### #????????? | | """"""""""""""###### # # # ### #????????? | | """"""" """"""""# # # # ## < ##????????? | | """"""" g g g ######???? | | """" g @ #???? | | """" #???? | | """ #???? | | """" ##???? | | """" """"""""""""""""#####????? | | """"" """"###############????????? | | """"" """""###??????????????????????? | | """"""" "#####????????????????????????? | | ######"## "#????????????????????????????? | | ?????#"### "#????????????????????????????? | | ?????#"#?# "#????????????????????????????? | | ?????#"#? "#????????????????????????????? | | ?????#"?# "#????????????????????????????? | | ???????? "#????????????????????????????? | | ???????### "#????????????????????????????? | | ?????????# "#????????????????????????????? | | ?????????# ""????????????????????????????? | | ????????? ""????????????????????????????? | | ?????????X "?????????????????????????????? | | ????????? ?????????????????????????????? | | ?????????? X?????????????????????????????? | | ?????????? ?????????????????????????????? | | ???????????????????????????????????????????? | | ???????????????????????????????????????????? | | ???????????????????????????????????????????? | +----------------------------------------------------+ Best States ------------- Heat Dissipation 59 Energy Generation 18 Energy Capacity 310 Matter Stores 300 Matter Capacity 300 Sight Range 16 Robot Scan Range 20 Terrain Scan Density 10 Armor Coverage 150 Phase Shifting 5 Evasion (%) 64 Targeting Accuracy 8 Recoil Reduction 3 Offensive Hacking 55 Defensive Hacking 20 Item Schematics ----------------- Hacking Suite | -8/Materials | Hacked Imp. Flight Unit | -8/Materials | Scanalyzed Lrn. Sensor Array | -7/Factory | Hacked Robot Schematics ------------------ None Fabricated ------------ Lrn. Sensor Array | x1 | -7/Factory Alien Tech Used ----------------- None Achievements -------------- None Challenges ------------ None Game ------ Seed NodeTerrabombPod Manual? 0 Play Time 00:45:58 Cumulative 236.5 hours Start 2020.06.04 @ 10:39:40 End 2020.06.04 @ 11:29:26 Sessions 1 Manual Loads 0 Difficulty Rogue Special Mode None Game No. 383 Rogue 383 Adventurer 0 Explorer 0 Win Type - Total 5 Types 3/0/1/1/0/0/0 Lore% 79 Gallery% 80 Achievement% 60 Wizard Run 0 Options --------- ASCII 0 Keyboard 1 Movement Numpad Keybinds 0 Fullscreen 1 Font 18/X11Bold Map View 76x50 Tactical HUD 1 Map Filters NONE Filters NONE Steam 1 RUN: 21681c50-ca89-4965-a1fd-df5084881730